bitfinex-derivatives/quotes_BTCF0:USTF0_20241021
["timestamp","ask_amount","ask_price","bid_price","bid_amount"]
[1729524621816,0.081653,67000.0,66999.0,0.096574]
[1729524622614,0.074663,66991.0,66990.0,0.3608]
[1729524623122,0.074663,66991.0,66990.0,0.457374]
[1729524623718,0.075663,66991.0,66990.0,0.458374]
[1729524623919,0.075663,66991.0,66990.0,0.462374]
[1729524624829,0.075663,66991.0,66990.0,0.537038]
[1729524625525,0.001,66991.0,66990.0,0.537038]
[1729524625728,0.02722261,66996.0,66995.0,0.074658]
[1729524625934,0.074657,66996.0,66995.0,0.171232]
[1729524626422,0.074657,66996.0,66995.0,0.163232]
[1729524626815,0.074657,66996.0,66995.0,0.164232]
[1729524627011,0.074657,66996.0,66995.0,0.001]
[1729524627219,0.075657,66996.0,66995.0,0.097574]
[1729524631130,0.075657,66996.0,66995.0,0.172232]
[1729524633027,0.075657,66996.0,66995.0,0.097574]
[1729524635124,0.075657,66996.0,66995.0,0.001]
[1729524635329,0.308757,66996.0,66995.0,0.001]
[1729524636126,0.308757,66996.0,66991.0,0.1813]
[1729524636127,0.074661,66992.0,66991.0,0.1813]
[1729524636328,0.074673,66982.0,66981.0,0.00223929]
[1729524636736,0.074673,66982.0,66981.0,0.09881329]
[1729524637322,0.435473,66982.0,66981.0,0.00223929]
[1729524637525,0.074683,66973.0,66972.0,0.3608]
[1729524637834,0.435473,66982.0,66969.0,0.184887]
[1729524637835,0.074675,66980.0,66979.0,0.096574]
[1729524639026,0.074675,66980.0,66966.0,0.3608]
[1729524639027,0.074689,66968.0,66966.0,0.43549]
[1729524639428,0.074688,66968.0,66967.0,0.096574]
[1729524640231,0.075688,66968.0,66967.0,0.096574]
[1729524641628,0.074688,66968.0,66967.0,0.097574]
[1729524641839,0.075688,66968.0,66967.0,0.093574]
[1729524642220,0.1025992,66968.0,66967.0,0.093574]
[1729524648034,0.0269112,66968.0,66967.0,0.093574]
[1729524648243,0.3608,66969.0,66967.0,0.093574]
[1729524648428,0.46023565,66969.0,66968.0,0.088574]
[1729524649331,0.09943565,66969.0,66968.0,0.088574]
[1729524649737,0.09943565,66969.0,66968.0,0.089574]
[1729524649738,0.10043565,66969.0,66968.0,0.089574]
[1729524650735,0.074688,66968.0,66967.0,0.004]
[1729524651042,0.074688,66968.0,66943.0,0.3608]
[1729524651043,0.074707,66951.0,66950.0,0.435508]
[1729524651241,0.074707,66951.0,66950.0,0.3608]
[1729524651535,0.074707,66951.0,66950.0,0.435508]
[1729524651728,0.074707,66951.0,66950.0,0.3608]
[1729524651928,0.3608,66962.0,66950.0,0.80888]
[1729524652139,0.074702,66956.0,66955.0,0.074703]
[1729524652342,0.38532399,66962.0,66950.0,0.38990933]
[1729524652550,0.074704,66954.0,66952.0,0.074706]
[1729524652740,0.074705,66953.0,66952.0,0.074706]
[1729524653241,0.074707,66952.0,66950.0,0.38890933]
[1729524653439,0.074703,66956.0,66955.0,0.004]
[1729524654235,0.074703,66956.0,66955.0,0.078703]
[1729524654435,0.074703,66956.0,66955.0,0.004]
[1729524654834,0.074696,66961.0,66950.0,0.38690933]
[1729524654835,0.074707,66951.0,66950.0,0.38690933]
[1729524655028,0.074707,66951.0,66950.0,0.46161733]
[1729524655230,0.074707,66951.0,66950.0,0.90869733]
[1729524656232,0.075707,66951.0,66950.0,0.90969733]
[1729524656535,0.075707,66951.0,66950.0,0.91369733]
[1729524657137,0.074696,66961.0,66950.0,0.83898933]
[1729524657336,0.074704,66955.0,66954.0,0.074704]
[1729524658539,0.074704,66955.0,66954.0,0.078704]
[1729524659142,0.075704,66955.0,66954.0,0.079704]
[1729524660745,0.075704,66955.0,66954.0,0.005]
[1729524660934,0.436504,66955.0,66954.0,0.005]
[1729524661236,0.075704,66955.0,66954.0,0.005]
[1729524661952,0.884584,66955.0,66941.0,0.0022399]
[1729524662136,0.884584,66955.0,66931.0,0.3608]
[1729524662137,0.074727,66933.0,66932.0,0.1177]
[1729524664438,0.02485766,66940.0,66932.0,0.1177]
[1729524664634,0.074722,66938.0,66937.0,0.3608]
[1729524666344,0.074722,66938.0,66937.0,0.3628]
[1729524667154,0.075722,66938.0,66937.0,0.3638]
[1729524669447,0.075722,66938.0,66937.0,0.003]
[1729524669646,0.075722,66938.0,66937.0,0.3638]
[1729524670153,0.075722,66938.0,66937.0,0.003]
[1729524670651,0.075722,66938.0,66937.0,0.3638]
[1729524671739,0.07637296,66938.0,66937.0,0.3638]
[1729524672149,0.00165096,66938.0,66937.0,0.438523]
[1729524672447,0.00165096,66938.0,66937.0,0.886683]
[1729524672651,0.02555055,66956.0,66938.0,0.074721]
[1729524672838,0.074704,66955.0,66953.0,0.3608]
[1729524673040,0.00138822,66960.0,66953.0,0.3528]
[1729524673449,0.02682066,66960.0,66953.0,0.427504]
[1729524673648,0.00138822,66960.0,66953.0,0.3528]
[1729524673855,0.001,66956.0,66953.0,0.3528]
[1729524674657,0.00138822,66960.0,66953.0,0.3528]
[1729524674845,0.00138822,66960.0,66953.0,0.3538]
[1729524675040,0.003,66955.0,66953.0,0.001]
[1729524675246,0.003,66955.0,66954.0,0.3608]
[1729524675848,0.003,66956.0,66954.0,0.3608]
[1729524676254,0.00138822,66960.0,66954.0,0.3608]
[1729524676449,0.004,66955.0,66953.0,0.02462573]
[1729524676749,0.004,66955.0,66954.0,0.3608]
[1729524677147,0.004,66955.0,66953.0,0.002]
[1729524677549,0.004,66955.0,66954.0,0.001]
[1729524677954,0.00138822,66960.0,66954.0,0.001]
[1729524678154,0.004,66956.0,66954.0,0.001]
[1729524678356,0.004,66956.0,66950.0,0.25962]
[1729524678559,0.074698,66959.0,66953.0,0.002]
[1729524678856,0.004,66955.0,66953.0,0.002]
[1729524679155,0.00138822,66960.0,66954.0,0.3608]
[1729524679456,0.004,66956.0,66954.0,0.3608]
[1729524679652,0.00138822,66960.0,66955.0,0.074703]
[1729524679859,0.00138822,66960.0,66954.0,0.3608]
[1729524680049,0.003,66959.0,66954.0,0.3608]
[1729524680254,0.003,66959.0,66954.0,0.3618]
[1729524681548,0.003,66959.0,66954.0,0.51092]
[1729524681858,0.004,66956.0,66954.0,0.586623]
[1729524682451,0.00138822,66960.0,66954.0,0.586623]
[1729524682758,0.004,66959.0,66954.0,0.586623]
[1729524682946,0.004,66959.0,66954.0,0.3618]
[1729524683152,0.00138822,66960.0,66954.0,0.3618]
[1729524683467,0.004,66956.0,66954.0,0.436504]
[1729524683649,0.004,66956.0,66955.0,0.074703]
[1729524683849,0.004,66956.0,66955.0,0.672903]
[1729524684057,0.00138822,66960.0,66959.0,0.074698]
[1729524684248,0.00138822,66960.0,66959.0,0.435498]
[1729524684448,0.074677,66978.0,66970.0,0.074686]
[1729524684644,0.074677,66978.0,66970.0,0.435486]
[1729524684866,0.02582567,66981.0,66970.0,1.244246]
[1729524685076,0.00083781,66981.0,66970.0,1.244246]
[1729524685464,0.00083781,66981.0,66980.0,0.074675]
[1729524685665,0.00083781,66981.0,66980.0,0.435475]
[1729524685863,0.00083781,66981.0,66980.0,0.89088607]
[1729524686290,0.00083781,66981.0,66980.0,1.49088607]
[1729524686576,0.00119093,66992.0,66991.0,0.074663]
[1729524686775,0.00119093,66992.0,66991.0,0.585543]
[1729524688275,0.00119093,66992.0,66991.0,0.577543]
[1729524688772,0.00119093,66992.0,66991.0,0.427463]
[1729524688977,0.00119093,66992.0,66991.0,0.3608]
[1729524689173,0.00119093,66992.0,66991.0,0.435463]
[1729524689883,0.00119093,66992.0,66991.0,0.46771968]
[1729524689884,0.00219093,66992.0,66991.0,0.46771968]
[1729524692978,0.00267529,67003.0,67002.0,0.07465]
[1729524693185,0.00267529,67003.0,67002.0,0.79625]
[1729524693478,0.00267529,67003.0,67002.0,1.24401]
[1729524694372,0.00567529,67003.0,67002.0,1.24401]
[1729524694575,0.00567529,67003.0,67002.0,0.94677]
[1729524694576,0.01167529,67003.0,67002.0,0.94677]
[1729524695769,0.01167529,67003.0,67002.0,1.39453]
[1729524696274,0.00233781,67014.0,67013.0,0.074638]
[1729524696475,0.00233781,67014.0,67013.0,0.435438]
[1729524698083,0.01333781,67014.0,67013.0,0.436438]
[1729524698782,0.01333781,67014.0,67013.0,0.46123223]
[1729524699176,0.02033781,67014.0,67013.0,0.61175223]
[1729524703578,0.02033781,67014.0,67013.0,0.46223223]
[1729524703774,0.02033781,67014.0,67013.0,0.45423223]
[1729524705086,0.09497481,67014.0,67013.0,0.3628]
[1729524705284,0.02033781,67014.0,67013.0,0.076638]
[1729524706491,0.02033781,67014.0,67013.0,0.524318]
[1729524706682,8.1e-07,67014.0,67013.0,0.524318]
[1729524706886,8.1e-07,67014.0,67013.0,1.124318]
[1729524707083,8.1e-07,67014.0,67013.0,0.524318]
[1729524707589,8.1e-07,67014.0,67013.0,0.527318]
[1729524707891,8.1e-07,67014.0,67013.0,1.127318]
[1729524708290,0.00180747,67025.0,67013.0,1.30048]
[1729524708486,0.00180747,67025.0,67024.0,0.796226]
[1729524708685,0.00180747,67025.0,67024.0,0.945706]
[1729524709393,0.00280747,67025.0,67024.0,0.95313691]
[1729524710088,0.00180747,67025.0,67024.0,0.95313691]
[1729524710296,0.00180747,67025.0,67024.0,0.95813691]
[1729524710482,0.00180747,67025.0,67024.0,0.80865691]
[1729524710687,0.00180747,67025.0,67024.0,0.95813691]
[1729524711489,0.00180747,67025.0,67024.0,0.96013691]
[1729524712293,0.00180747,67025.0,67024.0,0.95513691]
[1729524712593,0.00280747,67025.0,67024.0,0.95913691]
[1729524712790,0.00280747,67025.0,67024.0,0.96213691]
[1729524713300,0.00180498,67036.0,67024.0,2.00973691]
[1729524713490,0.00180498,67036.0,67035.0,0.796214]
[1729524714784,0.00180498,67036.0,67035.0,0.799214]
[1729524715391,0.00180498,67036.0,67035.0,0.796214]
[1729524715594,0.00180498,67036.0,67035.0,0.801214]
[1729524717100,0.00180498,67036.0,67035.0,0.796214]
[1729524717400,0.00180498,67036.0,67035.0,0.82641483]
[1729524718395,0.00180498,67036.0,67035.0,0.83141483]
[1729524718585,0.00180498,67036.0,67035.0,1.02537582]
[1729524718792,0.00180498,67036.0,67035.0,0.83141483]
[1729524719001,0.00180498,67036.0,67035.0,0.82541483]
[1729524720103,0.00180498,67036.0,67035.0,0.97485483]
[1729524720488,0.00180498,67036.0,67035.0,0.82541483]
[1729524720798,0.00180498,67036.0,67035.0,0.97485483]
[1729524721181,0.00180498,67036.0,67035.0,0.82541483]
[1729524721389,0.00180498,67036.0,67035.0,0.97485483]
[1729524721691,0.00180498,67036.0,67035.0,0.96985483]
[1729524721886,0.00180498,67036.0,67035.0,0.97485483]
[1729524723197,0.00180498,67036.0,67035.0,0.97441483]
[1729524724705,0.00146525,67046.0,67035.0,0.82541483]
[1729524724905,0.00146525,67046.0,67045.0,0.074602]
[1729524725085,0.00146525,67046.0,67045.0,0.435402]
[1729524725289,0.00146525,67046.0,67045.0,0.882842]
[1729524726091,0.00146525,67046.0,67045.0,0.435402]
[1729524726285,0.00146525,67046.0,67045.0,0.584402]
[1729524726601,0.00146525,67046.0,67045.0,0.60949234]
[1729524727099,0.00146525,67046.0,67045.0,0.61649234]
[1729524727500,0.00146525,67046.0,67045.0,0.66100701]
[1729524727693,0.00146525,67046.0,67045.0,0.66600701]
[1729524728088,0.00146525,67046.0,67045.0,0.66599985]
[1729524728888,0.00146525,67046.0,67045.0,0.47249234]
[1729524729099,0.07606625,67046.0,67045.0,0.3728]
[1729524729609,0.07606625,67046.0,67045.0,0.447402]
[1729524730104,0.00146525,67046.0,67045.0,0.447402]
[1729524730700,0.00146525,67046.0,67045.0,0.445402]
[1729524731199,0.00146525,67046.0,67045.0,0.440402]
[1729524731794,0.07606625,67046.0,67045.0,0.440402]
[1729524732306,0.00146525,67046.0,67045.0,0.437402]
[1729524733093,0.07606625,67046.0,67045.0,0.435402]
[1729524733290,0.07606625,67046.0,67045.0,0.438402]
[1729524734397,0.07606625,67046.0,67045.0,0.430402]
[1729524735004,0.00146525,67046.0,67045.0,0.430402]
[1729524735202,0.00146525,67046.0,67045.0,0.428402]
[1729524735903,0.00146525,67046.0,67045.0,0.427402]
[1729524736107,0.00246525,67046.0,67045.0,0.427402]
[1729524736809,0.00246525,67046.0,67045.0,0.788202]
[1729524737997,0.00246525,67046.0,67045.0,0.83201951]
[1729524738798,0.00246525,67046.0,67045.0,0.892812]
[1729524739002,0.00146525,67046.0,67045.0,0.93749396]
[1729524739201,0.00246525,67046.0,67045.0,0.93749396]
[1729524739597,0.00246525,67046.0,67045.0,0.892812]
[1729524739801,0.00146525,67046.0,67045.0,0.897812]
[1729524740005,0.00146525,67046.0,67045.0,0.799512]
[1729524741902,0.00146525,67046.0,67045.0,0.792512]
[1729524742106,0.00146525,67046.0,67045.0,0.799512]
[1729524742315,0.00146525,67046.0,67045.0,0.795512]
[1729524742713,0.00146525,67046.0,67045.0,0.937472]
[1729524742920,0.07606625,67046.0,67045.0,0.791512]
[1729524743214,0.07606625,67046.0,67045.0,0.793512]
[1729524743621,0.07606625,67046.0,67045.0,0.795512]
[1729524745025,0.00146525,67046.0,67045.0,0.795512]
[1729524745210,0.00146525,67046.0,67045.0,0.790512]
[1729524745415,0.00246525,67046.0,67045.0,0.790512]
[1729524745919,0.00246525,67046.0,67045.0,1.345852]
[1729524746225,0.00146525,67046.0,67045.0,1.342852]
[1729524746520,0.00146525,67046.0,67045.0,1.344852]
[1729524746724,0.00146525,67046.0,67045.0,0.897412]
[1729524746926,0.00146525,67046.0,67045.0,1.344852]
[1729524747121,0.00146525,67046.0,67045.0,0.902412]
[1729524747325,0.00146525,67046.0,67045.0,1.349852]
[1729524747621,0.00146525,67046.0,67045.0,1.344852]
[1729524747822,0.00146525,67046.0,67045.0,1.349852]
[1729524748019,0.00146525,67046.0,67045.0,1.347852]
[1729524748324,0.00146525,67046.0,67045.0,1.354852]
[1729524749225,0.00146525,67046.0,67045.0,1.40419987]
[1729524749418,0.00146525,67046.0,67045.0,1.35951791]
[1729524749910,0.00146525,67046.0,67045.0,1.40420373]
[1729524750221,0.00146525,67046.0,67045.0,1.40666866]
[1729524750420,0.00146525,67046.0,67045.0,1.41166866]
[1729524750614,2.5e-07,67046.0,67045.0,1.41166866]
[1729524750820,2.5e-07,67046.0,67045.0,1.41166855]
[1729524751021,2.5e-07,67046.0,67045.0,1.36698273]
[1729524751210,2.5e-07,67046.0,67045.0,1.41165357]
[1729524751617,0.00309692,67057.0,67045.0,1.41165357]
[1729524751827,0.00309692,67057.0,67056.0,0.79619]
[1729524752131,0.00309692,67057.0,67056.0,0.94475]
[1729524754320,0.07768592,67057.0,67056.0,0.94475]
[1729524754524,0.07868592,67057.0,67056.0,0.97194986]
[1729524755228,0.00409692,67057.0,67056.0,0.97194986]
[1729524757323,0.00409692,67057.0,67056.0,0.82338986]
[1729524757522,0.00409692,67057.0,67056.0,0.97194986]
[1729524758023,0.07868592,67057.0,67056.0,0.97194986]
[1729524758821,0.07868592,67057.0,67046.0,0.1073]
[1729524758822,0.074592,67054.0,67053.0,0.3608]
[1729524759442,0.074592,67054.0,67046.0,0.3608]
[1729524759626,0.074592,67054.0,67047.0,0.14856]
[1729524759627,0.074599,67048.0,67047.0,0.14856]
[1729524761221,0.074599,67048.0,67047.0,0.001]
[1729524762537,0.075599,67048.0,67047.0,0.001]
[1729524763535,0.028499,67048.0,67047.0,0.001]
[1729524763736,0.074599,67048.0,67047.0,0.075599]
[1729524764131,0.074597,67052.0,67051.0,0.074595]
[1729524765339,0.074597,67052.0,67051.0,0.066595]
[1729524765543,0.074599,67048.0,67047.0,0.0756]
[1729524766432,0.074599,67048.0,67047.0,0.0746]
[1729524766741,0.0746,67047.0,67046.0,0.3608]
[1729524766932,0.0746,67047.0,67046.0,0.435401]
[1729524768639,0.0746,67048.0,67047.0,0.074598]
[1729524769142,0.106,67053.0,67050.0,0.074595]
[1729524769342,0.00309692,67057.0,67056.0,0.07459]
[1729524769538,0.07768592,67057.0,67056.0,0.43539]
[1729524770043,0.07768592,67057.0,67056.0,0.3608]
[1729524771137,0.074597,67050.0,67049.0,0.435398]
[1729524771444,0.074597,67050.0,67049.0,0.3608]
[1729524771636,0.074597,67050.0,67049.0,0.435398]
[1729524772837,0.1050903,67057.0,67054.0,0.074591]
[1729524772838,0.074593,67055.0,67054.0,0.074591]
[1729524773541,0.00309692,67057.0,67050.0,0.3608]
[1729524773744,0.07768592,67057.0,67056.0,0.43539]
[1729524774737,0.00309692,67057.0,67056.0,0.43539]
[1729524774943,0.07768592,67057.0,67056.0,0.43539]
[1729524775341,0.00309692,67057.0,67056.0,0.43539]
[1729524776045,0.07768592,67057.0,67056.0,0.43539]
[1729524776234,0.07768592,67057.0,67050.0,0.3608]
[1729524776436,0.43848592,67057.0,67046.0,0.3608]
[1729524776641,0.0746,67047.0,67046.0,0.3608]
[1729524777539,0.074603,67044.0,67043.0,0.02665201]
[1729524777745,0.185198,67050.0,67042.0,0.074605]
[1729524777936,0.074605,67043.0,67042.0,0.074605]
[1729524780545,0.02751198,67049.0,67039.0,0.3608]
[1729524780743,0.074608,67040.0,67039.0,0.3528]
[1729524782153,0.074608,67040.0,67039.0,0.3608]
[1729524782949,0.074608,67040.0,67039.0,0.435409]
[1729524783335,0.074605,67043.0,67042.0,0.074605]
[1729524785041,0.074605,67043.0,67042.0,0.077605]
[1729524786144,0.074598,67050.0,67049.0,0.074596]
[1729524786344,0.00309692,67057.0,67049.0,0.3608]
[1729524786345,0.074594,67053.0,67049.0,0.3608]
[1729524786552,0.074597,67050.0,67049.0,0.3608]
[1729524787453,0.522037,67050.0,67049.0,0.3608]
[1729524788050,0.522037,67050.0,67049.0,0.3618]
[1729524788242,0.522037,67050.0,67049.0,0.001]
[1729524788446,0.074606,67042.0,67041.0,0.3608]
[1729524789452,0.074606,67042.0,67037.0,0.074611]
[1729524789648,0.07461,67038.0,67037.0,0.074611]
[1729524791155,0.07461,67038.0,67036.0,0.3608]
[1729524791156,0.074611,67037.0,67036.0,0.3608]
[1729524791357,0.074615,67034.0,67033.0,0.0022377]
[1729524794256,0.074619,67030.0,67029.0,0.43542]
[1729524794762,0.074624,67027.0,67026.0,0.074623]
[1729524796248,0.074624,67027.0,67026.0,0.071623]
[1729524797659,0.074624,67027.0,67026.0,0.078623]
[1729524802965,0.074624,67027.0,67026.0,0.012]
[1729524803355,0.522224,67027.0,67026.0,0.012]
[1729524803562,0.07463,67020.0,67019.0,0.00223789]
[1729524803960,0.07463,67020.0,67019.0,0.07686889]
[1729524804156,0.07463,67020.0,67019.0,0.00163789]
[1729524804761,0.07463,67020.0,67019.0,0.01363789]
[1729524805565,0.1144,67026.0,67019.0,0.01363789]
[1729524805765,0.1144,67026.0,67022.0,0.074626]
[1729524805766,0.074627,67023.0,67022.0,0.074626]
[1729524806166,0.189025,67026.0,67025.0,0.074625]
[1729524806666,0.189025,67026.0,67022.0,0.3608]
[1729524806667,0.074627,67023.0,67022.0,0.435427]
[1729524807667,0.074627,67023.0,67022.0,0.3608]
[1729524808664,0.081627,67023.0,67022.0,0.3628]
[1729524808967,0.083627,67023.0,67022.0,0.3628]
[1729524809359,0.083627,67023.0,67022.0,0.002]
[1729524810860,0.11057461,67023.0,67022.0,0.002]
[1729524811775,0.074634,67017.0,67016.0,0.3548]
[1729524813180,0.074634,67017.0,67016.0,0.429435]
[1729524813878,0.078634,67017.0,67016.0,0.429435]
[1729524814377,0.078634,67017.0,67016.0,0.3548]
[1729524814564,0.078634,67017.0,67016.0,0.429435]
[1729524815975,0.004,67017.0,67016.0,0.429435]
[1729524817074,0.078634,67017.0,67016.0,0.429435]
[1729524819079,0.078634,67017.0,67016.0,0.3548]
[1729524819378,0.078634,67017.0,67016.0,0.429435]
[1729524827182,0.078634,67017.0,67016.0,0.421435]
[1729524834187,0.078634,67017.0,67016.0,0.435435]
[1729524838987,0.078634,67017.0,67016.0,0.3608]
[1729524839290,0.074641,67010.0,67009.0,0.3608]
[1729524839479,0.074642,67009.0,67008.0,0.074643]
[1729524840183,0.074649,67003.0,67002.0,0.46443854]
[1729524840893,0.1043,67013.0,67002.0,0.46443854]
[1729524841186,0.074641,67011.0,67010.0,0.435439]
[1729524841389,0.074638,67014.0,67013.0,0.074636]
[1729524841589,0.11120212,67014.0,67013.0,0.074636]
[1729524842090,0.074638,67014.0,67013.0,0.074636]
[1729524842500,0.074634,67017.0,67016.0,0.066634]
[1729524842793,0.074634,67017.0,67016.0,0.427434]
[1729524844079,0.077634,67017.0,67016.0,0.427434]
[1729524846118,0.078634,67017.0,67016.0,0.427434]
[1729524849679,0.004,67017.0,67016.0,0.427434]
[1729524850083,0.0405595,67017.0,67016.0,0.427434]
[1729524850287,0.004,67017.0,67016.0,0.427434]
[1729524851488,0.0405595,67017.0,67016.0,0.427434]
[1729524851792,0.0405595,67017.0,67016.0,0.3608]
[1729524851793,0.1151935,67017.0,67016.0,0.3608]
[1729524852296,0.078634,67017.0,67016.0,0.3608]
[1729524853611,0.078634,67017.0,67016.0,0.435435]
[1729524857901,0.078634,67017.0,67016.0,0.427435]
[1729524858404,0.078634,67017.0,67016.0,0.3528]
[1729524858609,0.074637,67014.0,67013.0,0.02631793]
[1729524858904,0.074649,67003.0,67002.0,0.00299861]
[1729524859219,0.074649,67003.0,67002.0,0.00223861]
[1729524860308,0.074649,67003.0,67002.0,0.00623861]
[1729524860612,0.074649,67003.0,67002.0,0.00723861]
[1729524860912,0.075649,67003.0,67002.0,0.00323861]
[1729524861294,0.10243363,67003.0,67002.0,0.00323861]
[1729524861706,0.075649,67003.0,67002.0,0.00323861]
[1729524862010,0.075649,67003.0,67002.0,0.07788861]
[1729524862011,0.001,67003.0,67002.0,0.07788861]
[1729524866209,0.075649,67003.0,67002.0,0.07788861]
[1729524869403,0.001,67003.0,67002.0,0.07788861]
[1729524869608,0.074628,67023.0,67010.0,0.07464]
[1729524869609,0.074642,67011.0,67010.0,0.07464]
[1729524869809,0.074642,67011.0,67010.0,0.43544]
[1729524870301,0.02650376,67012.0,67011.0,0.07464]
[1729524870503,0.074638,67014.0,67013.0,0.074637]
[1729524871704,0.081638,67014.0,67013.0,0.075637]
[1729524872709,0.090638,67014.0,67013.0,0.076637]
[1729524873107,0.088638,67014.0,67013.0,0.076637]
[1729524873307,0.088638,67014.0,67013.0,0.068637]
[1729524873503,0.014,67014.0,67013.0,0.068637]
[1729524873812,0.00096,67027.0,67026.0,0.074624]
[1729524874006,0.074619,67030.0,67029.0,0.07462]
[1729524874215,0.2172,67036.0,67033.0,0.074614]
[1729524874216,0.074616,67034.0,67033.0,0.074614]
[1729524874412,0.074616,67034.0,67033.0,0.435414]
[1729524875221,0.074619,67030.0,67029.0,0.3608]
[1729524876136,0.074619,67030.0,67029.0,0.001]
[1729524877319,0.076619,67030.0,67029.0,0.001]
[1729524878224,0.1123,67035.0,67027.0,0.074622]
[1729524878413,0.074621,67028.0,67027.0,0.074622]
[1729524879326,0.074621,67028.0,67024.0,0.3608]
[1729524879327,0.074625,67025.0,67024.0,0.435426]
[1729524880213,0.074625,67025.0,67024.0,0.3608]
[1729524880411,0.074625,67025.0,67024.0,0.435418]
[1729524880818,0.078625,67025.0,67024.0,0.435418]
[1729524883324,0.077625,67025.0,67024.0,0.435418]
[1729524883822,0.003,67025.0,67024.0,0.435418]
[1729524884323,0.074614,67029.0,67028.0,0.074614]
[1729524886713,0.075614,67029.0,67028.0,0.074614]
[1729524887110,0.074614,67029.0,67028.0,0.074614]
[1729524887326,0.078614,67029.0,67028.0,0.074614]
[1729524887526,0.004,67029.0,67028.0,0.074614]
[1729524887824,0.074609,67034.0,67033.0,0.074607]
[1729524888023,0.074609,67034.0,67033.0,0.435407]
[1729524888222,0.3279,67051.0,67033.0,0.3608]
[1729524888424,0.074604,67038.0,67037.0,0.074602]
[1729524888814,0.074598,67043.0,67042.0,0.074597]
[1729524889019,0.074598,67043.0,67042.0,0.435397]
[1729524889219,0.522078,67043.0,67042.0,0.435397]
[1729524889416,0.522078,67043.0,67042.0,0.427397]
[1729524890022,0.522078,67043.0,67042.0,0.428397]
[1729524890225,0.074598,67043.0,67042.0,0.428397]
[1729524890423,0.522078,67043.0,67042.0,0.3618]
[1729524890613,0.522078,67043.0,67042.0,0.436398]
[1729524890824,0.526078,67043.0,67042.0,0.437398]
[1729524891221,0.526078,67043.0,67042.0,0.3628]
[1729524892928,0.55297584,67043.0,67042.0,0.437398]
[1729524893617,0.10549584,67043.0,67042.0,0.437398]
[1729524895732,0.03089784,67043.0,67042.0,0.437398]
[1729524896536,0.10549484,67043.0,67042.0,0.437398]
[1729524900228,0.10549484,67043.0,67042.0,0.3628]
[1729524900432,0.55297484,67043.0,67034.0,0.3608]
[1729524900633,0.074606,67035.0,67034.0,0.3608]
[1729524900830,0.074606,67035.0,67034.0,0.435407]
[1729524901026,0.074606,67035.0,67034.0,0.3608]
[1729524902738,0.005,67035.0,67034.0,0.435407]
[1729524903537,0.10128487,67041.0,67034.0,0.435407]
[1729524903738,0.10128487,67041.0,67040.0,0.4354]
[1729524904734,0.10128487,67041.0,67040.0,0.4274]
[1729524905035,0.10228487,67041.0,67040.0,0.4274]
[1729524905335,0.10228487,67041.0,67040.0,0.3608]
[1729524905730,0.10128487,67041.0,67040.0,0.3608]
[1729524905928,0.10728487,67041.0,67040.0,0.3628]
[1729524908039,0.074606,67035.0,67023.0,0.00223761]
[1729524908339,0.074606,67035.0,67016.0,0.04466262]
[1729524908340,0.3608,67024.0,67012.0,0.0939]
[1729524908641,0.074628,67015.0,67012.0,0.0939]
[1729524908939,0.3608,67018.0,67012.0,0.0939]
[1729524909245,0.3608,67018.0,67012.0,0.12060409]
[1729524909545,0.3608,67018.0,67014.0,0.074629]
[1729524909729,0.074627,67016.0,67013.0,0.07463]
[1729524910044,0.074627,67016.0,67014.0,0.074629]
[1729524910743,0.3608,67018.0,67012.0,0.0939]
[1729524910927,0.074639,67006.0,67004.0,0.02722828]
[1729524911132,0.074642,67003.0,67002.0,0.00223861]
[1729524911639,0.074658,66988.0,66987.0,0.00223937]
[1729524912043,0.3608,66993.0,66987.0,0.00223937]
[1729524912238,0.074656,66991.0,66987.0,0.00223937]
[1729524912443,0.074658,66989.0,66987.0,0.00223937]
[1729524912634,0.074658,66988.0,66987.0,0.00223937]
[1729524913140,0.074658,66988.0,66987.0,0.00723937]
[1729524914267,0.074658,66988.0,66987.0,0.01423937]
[1729524914777,0.522498,66988.0,66975.0,0.3608]
[1729524914983,0.074667,66980.0,66972.0,0.074676]
[1729524915278,0.074669,66979.0,66973.0,0.074675]
[1729524915462,0.0987,66984.0,66970.0,0.14732]
[1729524915661,0.074672,66976.0,66971.0,0.14732]
[1729524915867,0.1902,66984.0,66971.0,0.14732]
[1729524916066,0.074657,66990.0,66981.0,0.3608]
[1729524917074,0.074658,66988.0,66985.0,0.074661]
[1729524917885,0.001,66990.0,66988.0,0.074658]
[1729524918270,0.074653,66993.0,66988.0,0.074658]
[1729524918681,0.3608,66998.0,66987.0,0.3608]
[1729524918996,0.1907,67003.0,66987.0,0.3608]
[1729524919276,0.074654,66992.0,66987.0,0.3608]
[1729524919487,0.1907,67003.0,66987.0,0.3608]
[1729524919670,0.074655,66991.0,66988.0,0.14732]
[1729524919983,0.3608,66992.0,66982.0,0.02670691]
[1729524920171,0.3608,66992.0,66981.0,0.004]
[1729524920172,0.074665,66982.0,66981.0,0.004]
[1729524920373,0.074668,66980.0,66974.0,0.435474]
[1729524920671,0.074668,66980.0,66976.0,0.074672]
[1729524920987,0.074668,66980.0,66975.0,0.14736]
[1729524921172,0.074662,66985.0,66975.0,0.14736]
[1729524921369,0.074662,66985.0,66982.0,0.3638]
[1729524921575,0.074647,66999.0,66982.0,0.3638]
[1729524921772,0.3608,67000.0,66988.0,0.3608]
[1729524921976,0.07465,66996.0,66993.0,0.074652]
[1729524922583,0.07465,66996.0,66989.0,0.0957]
[1729524922875,0.435445,67000.0,66995.0,0.07465]
[1729524923084,0.435445,67000.0,66997.0,0.074648]
[1729524923577,0.074645,67000.0,66997.0,0.222008]
[1729524924371,0.07464,67005.0,66997.0,0.14736]
[1729524924576,0.003,67000.0,66999.0,0.074646]
[1729524925280,0.004,67000.0,66999.0,0.074646]
[1729524925881,0.014,67000.0,66999.0,0.074646]
[1729524926188,0.074624,67020.0,66999.0,1.65636]